bitfinex-derivatives/quotes_SOLF0:USTF0_20251107
["timestamp","ask_amount","ask_price","bid_price","bid_amount"]
[1762474840186,3.05725381,155.67,155.64,0.04315664]
[1762474841676,0.04725381,155.67,155.64,0.04315664]
[1762474842280,3.10725381,155.67,155.64,0.04315664]
[1762474842784,3.06,155.65,155.64,0.04315664]
[1762474843382,0.04725381,155.67,155.64,3.08315664]
[1762474843992,0.04725381,155.67,155.66,3.04]
[1762474844581,3.06,155.72,155.66,3.04]
[1762474844891,3.06,155.72,155.6,65.92]
[1762474844892,3.06,155.72,155.68,8.824]
[1762474845585,3.10673091,155.72,155.68,8.8675929]
[1762474845779,3.10673091,155.72,155.68,0.0435929]
[1762474846181,5.7833,155.71,155.68,0.0435929]
[1762474847385,3.06,155.71,155.68,0.0435929]
[1762474847580,0.04673091,155.72,155.68,3.0835929]
[1762474847985,3.10673091,155.72,155.68,0.0435929]
[1762474848889,0.04673091,155.72,155.68,3.0835929]
[1762474849284,3.10673091,155.72,155.68,0.0435929]
[1762474849480,0.04673091,155.72,155.68,3.0835929]
[1762474849882,3.06,155.78,155.71,3.04]
[1762474850890,7.4298336,155.83,155.73,0.04722907]
[1762474850891,3.10832318,155.76,155.73,0.04722907]
[1762474851087,3.1053616,155.76,155.73,0.0416359]
[1762474852885,3.06,155.75,155.73,0.0416359]
[1762474853193,3.1053616,155.76,155.73,0.0416359]
[1762474854088,3.06,155.74,155.73,0.0416359]
[1762474854389,8.8868616,155.76,155.73,0.0416359]
[1762474854688,3.1053616,155.76,155.73,0.0416359]
[1762474854891,0.0453616,155.76,155.73,0.0416359]
[1762474855095,0.0453616,155.76,155.73,3.0816359]
[1762474857294,4.61604033,155.75,155.73,0.0416359]
[1762474857490,8.8867616,155.76,155.73,0.0416359]
[1762474857695,4.61640389,155.75,155.73,3.0816359]
[1762474857994,0.0453616,155.76,155.73,3.0816359]
[1762474858295,4.61640389,155.75,155.73,3.0816359]
[1762474858499,3.1053616,155.76,155.73,0.0416359]
[1762474858690,4.61739532,155.75,155.73,0.0416359]
[1762474858892,4.61739532,155.74,155.73,0.0416359]
[1762474859600,8.8867616,155.76,155.73,0.0416359]
[1762474859794,3.06,155.74,155.73,0.0416359]
[1762474860000,7.6773624,155.74,155.73,0.0416359]
[1762474860498,3.06,155.71,155.65,3.04]
[1762474860801,4.62103007,155.7,155.65,3.04]
[1762474860996,13.41182893,155.77,155.66,3.04]
[1762474860997,3.06,155.76,155.66,3.04]
[1762474861185,3.06,155.74,155.66,3.04]
[1762474861387,3.06,155.72,155.58,7.4298336]
[1762474861687,3.06,155.66,155.63,0.04478372]
[1762474861992,0.04605643,155.67,155.63,3.08478372]
[1762474862187,4.6258438,155.66,155.63,3.08478372]
[1762474862488,0.04605643,155.67,155.63,3.08478372]
[1762474862689,9.04199533,155.77,155.65,3.04]
[1762474862992,7.4298336,155.78,155.58,97.4627336]
[1762474862993,3.06,155.74,155.66,3.04]
[1762474863194,4.62587293,155.73,155.66,3.04]
[1762474863397,4.62587293,155.72,155.66,3.04]
[1762474863696,0.04062656,155.71,155.68,3.04]
[1762474863891,0.04062656,155.71,155.68,3.08848632]
[1762474864093,0.04062656,155.71,155.69,3.04]
[1762474864491,3.06,155.69,155.68,0.04848632]
[1762474864694,7.7011086,155.69,155.62,3.04]
[1762474864899,4.6411086,155.68,155.62,3.04]
[1762474865197,3.06,155.73,155.62,3.04]
[1762474865393,4.64584018,155.72,155.68,8.8241]
[1762474865594,4.64584018,155.71,155.68,3.0886334]
[1762474865897,4.64584018,155.7,155.68,0.0486334]
[1762474866088,4.6458282,155.69,155.68,0.0486334]
[1762474866293,3.10165466,155.72,155.68,0.0486334]
[1762474866495,4.64892337,155.71,155.68,0.0486334]
[1762474866793,4.64892337,155.7,155.68,0.0486334]
[1762474866993,4.64910762,155.69,155.68,0.0486334]
[1762474867493,3.10165466,155.72,155.68,0.0486334]
[1762474867692,4.65073266,155.71,155.68,0.0486334]
[1762474867889,3.10165466,155.72,155.68,0.0486334]
[1762474868197,4.65064333,155.71,155.68,0.0486334]
[1762474868398,4.65064333,155.7,155.68,0.0486334]
[1762474868598,4.65064333,155.69,155.68,0.0486334]
[1762474869200,7.71064333,155.69,155.59,3.04]
[1762474869502,3.06,155.67,155.6,5.7871]
[1762474869695,4.65064333,155.66,155.6,5.7871]
[1762474869900,3.06,155.63,155.55,8.8289]
[1762474870101,5.96726139,155.68,155.55,8.8289]
[1762474870102,4.65064333,155.62,155.55,3.04]
[1762474870305,0.04687203,155.6,155.58,3.04]
[1762474870604,3.22220865,155.61,155.57,0.04522209]
[1762474870798,4.65859208,155.6,155.57,0.04383535]
[1762474870994,3.22220865,155.61,155.57,0.04383535]
[1762474871403,3.18,155.6,155.57,0.04383535]
[1762474871603,3.18,155.58,155.57,0.04383535]
[1762474871796,4.65781466,155.58,155.57,0.04383535]
[1762474871996,4.65820129,155.58,155.57,0.04383535]
[1762474872503,3.18,155.6,155.57,0.04383535]
[1762474872699,10.44261652,155.59,155.57,0.04383535]
[1762474872903,8.9678,155.59,155.57,0.04383535]
[1762474873103,3.18,155.58,155.57,0.04383535]
[1762474873709,7.83216921,155.58,155.57,0.04383535]
[1762474874305,3.18,155.58,155.57,0.04383535]
[1762474875406,0.04220865,155.61,155.57,3.03383535]
[1762474877394,0.04220865,155.61,155.58,2.99]
[1762474878395,3.22220865,155.61,155.57,0.04383535]
[1762474879301,3.18,155.6,155.57,0.04383535]
[1762474879508,5.82930865,155.61,155.57,0.04383535]
[1762474879805,0.04220865,155.61,155.57,0.04383535]
[1762474880201,0.04220865,155.61,155.59,5.7875]
[1762474880507,3.18,155.69,155.6,2.99]
[1762474880698,8.9648,155.67,155.6,2.99]
[1762474880903,4.63878509,155.66,155.6,2.99]
[1762474881104,3.18,155.67,155.6,2.99]
[1762474881305,3.18,155.65,155.57,5.7882]
[1762474881500,3.2269138,155.63,155.59,0.04824498]
[1762474881900,8.9668,155.62,155.59,0.04824498]
[1762474882100,0.0469138,155.63,155.59,0.04824498]
[1762474882101,3.18,155.61,155.59,0.04824498]
[1762474883606,8.967,155.61,155.59,0.04824498]
[1762474884406,3.18,155.6,155.59,0.04824498]
[1762474884604,5.788,155.58,155.52,2.99]
[1762474884805,3.18,155.58,155.48,2.99]
[1762474885009,3.18,155.58,155.51,5.7905]
[1762474885503,0.04830418,155.56,155.53,0.04174516]
[1762474885699,3.22830418,155.56,155.53,0.04174516]
[1762474886912,8.9692,155.55,155.53,0.04174516]
[1762474887313,3.18,155.55,155.53,0.04174516]
[1762474888213,3.18,155.54,155.45,284.59555722]
[1762474888409,3.18,155.54,155.46,2.99]
[1762474888604,3.18,155.54,155.48,8.7816]
[1762474889408,0.04231323,155.53,155.49,0.04354686]
[1762474889809,3.22231323,155.53,155.49,0.04354686]
[1762474891310,3.18,155.52,155.49,0.04354686]
[1762474892609,3.18,155.52,155.41,2.99]
[1762474893108,8.9718,155.48,155.43,8.7834]
[1762474893314,3.18,155.47,155.43,8.7834]
[1762474893509,3.18,155.47,155.39,4.36268346]
[1762474893715,0.04807123,155.45,155.43,2.99]
[1762474893913,3.18,155.54,155.43,2.99]
[1762474894411,3.18,155.54,155.48,5.7915]
[1762474894716,3.18,155.54,155.47,5.7919]
[1762474894913,0.0420787,155.52,155.49,0.0459751]
[1762474895211,0.0420787,155.52,155.5,5.7907]
[1762474895417,3.18,155.58,155.51,2.99]
[1762474895719,3.18,155.61,155.51,2.99]
[1762474895919,3.18,155.61,155.52,2.99]
[1762474896612,0.04829392,155.58,155.57,5.7882]
[1762474896916,0.04829392,155.58,155.57,8.7782]
[1762474897614,3.18,155.65,155.6,8.8571]
[1762474897915,3.12,155.68,155.61,3.07]
[1762474898108,4.60421678,155.7,155.61,3.07]
[1762474898312,3.12,155.7,155.61,3.07]
[1762474898720,0.04498795,155.67,155.64,0.04668198]
[1762474899322,3.16498795,155.67,155.64,0.04668198]
[1762474899722,3.12,155.65,155.56,3.07]
[1762474899912,3.12,155.63,155.56,3.07]
[1762474900217,5.7867,155.62,155.56,3.07]
[1762474900526,9.0367,155.62,155.52,3.19]
[1762474900818,0.04401358,155.59,155.55,3.23284676]
[1762474901608,3.29401358,155.59,155.55,0.04284676]
[1762474902324,3.25,155.56,155.55,0.04284676]
[1762474902823,5.7894,155.55,155.46,291.10764265]
[1762474903117,3.25,155.56,155.47,3.19]
[1762474903415,3.25,155.56,155.5,5.7908]
[1762474903815,0.04529805,155.55,155.51,0.04166]
[1762474904015,3.29529805,155.55,155.51,0.04166]
[1762474904616,0.04529805,155.55,155.51,3.23166]
[1762474904812,0.04529805,155.55,155.52,3.19]
[1762474905316,0.04529805,155.55,155.54,3.19]
[1762474905516,3.25,155.61,155.54,3.19]
[1762474905719,3.25,155.61,155.54,8.9793]
[1762474906018,3.25,155.61,155.54,3.19]
[1762474906517,0.04302472,155.59,155.56,0.04322896]
[1762474906727,0.04302472,155.59,155.56,3.23322896]
[1762474907112,0.04302472,155.59,155.57,3.19]
[1762474907724,3.29302472,155.59,155.56,0.04322896]
[1762474907920,0.04302472,155.59,155.56,0.04322896]
[1762474909529,0.04302472,155.59,155.56,3.23322896]
[1762474910826,0.04302472,155.59,155.57,5.788]
[1762474911029,0.04302472,155.59,155.57,8.978]
[1762474911332,0.04302472,155.59,155.58,3.19]
[1762474912427,0.04302472,155.59,155.58,4.47]
[1762474912628,9.0349,155.67,155.6,5.787]
[1762474912924,4.63450442,155.66,155.6,5.787]
[1762474913229,4.63450442,155.65,155.6,3.19]
[1762474913531,4.68219468,155.64,155.62,5.7865]
[1762474913717,0.04769026,155.64,155.62,5.7865]
[1762474914126,0.04769026,155.64,155.62,8.9765]
[1762474915127,0.04769026,155.64,155.63,3.19]
[1762474916931,5.783,155.72,155.65,5.7851]
[1762474916932,4.6342226,155.71,155.65,5.7851]
[1762474917131,7.8842226,155.7,155.65,8.9751]
[1762474917326,3.25,155.74,155.67,3.19]
[1762474917529,4.63183838,155.73,155.67,3.19]
[1762474917730,0.04906279,155.72,155.71,3.19]
[1762474918028,0.0465543,155.73,155.71,3.19]
[1762474918530,0.0465543,155.73,155.71,8.973]
[1762474918726,0.0465543,155.73,155.7,0.0427284]
[1762474918932,0.0465543,155.73,155.7,3.2327284]
[1762474919526,0.0465543,155.73,155.7,9.0160284]
[1762474919833,0.0465543,155.73,155.71,3.19]
[1762474920830,3.2965543,155.73,155.7,0.0427284]
[1762474921329,0.0465543,155.73,155.7,3.2327284]
[1762474921529,3.2965543,155.73,155.7,0.0427284]
[1762474921833,3.25,155.72,155.62,11.91]
[1762474922032,4.62002967,155.71,155.62,11.91]
[1762474922334,3.25,155.7,155.62,11.91]
[1762474922531,4.61902544,155.72,155.63,3.19]
[1762474922833,0.0445768,155.69,155.66,3.23560442]
[1762474923029,0.0445768,155.69,155.68,3.19]
[1762474924831,3.2945768,155.69,155.66,0.04560442]
[1762474925438,9.0786768,155.69,155.66,0.04560442]
[1762474927429,9.0344,155.68,155.66,0.04560442]
[1762474927623,3.25,155.67,155.58,3.19]
[1762474928231,7.61268346,155.67,155.58,3.19]
[1762474928435,3.25,155.65,155.58,3.19]
[1762474928635,0.04131534,155.63,155.6,3.23263969]
[1762474928935,3.25,155.7,155.61,3.19]
[1762474929345,3.25,155.7,155.65,8.9752]
[1762474930040,0.04920355,155.69,155.66,0.04408043]
[1762474930936,0.04920355,155.69,155.66,5.82888043]
[1762474931138,0.04920355,155.69,155.66,3.01408043]
[1762474931837,0.04920355,155.69,155.67,5.7845]
[1762474932036,0.04920355,155.69,155.66,0.04408043]
[1762474932236,0.04920355,155.69,155.66,3.01408043]
[1762474932437,0.04920355,155.69,155.66,0.04408043]
[1762474932438,3.03920355,155.69,155.66,0.04408043]
[1762474932633,0.04920355,155.69,155.66,3.01408043]
[1762474932838,0.04920355,155.69,155.67,8.7545]
[1762474933034,3.03920355,155.69,155.66,0.04408043]
[1762474934046,8.7744,155.68,155.66,0.04408043]
[1762474934234,2.99,155.67,155.66,0.04408043]
[1762474934541,2.99,155.67,155.59,2.97]
[1762474934934,2.99,155.67,155.62,5.7864]
[1762474935139,2.99,155.67,155.62,8.7564]
[1762474935546,0.04313662,155.66,155.63,0.0483767]
[1762474936149,3.03313662,155.66,155.63,0.0483767]
[1762474936838,3.03313662,155.66,155.63,3.0183767]
[1762474936839,0.04313662,155.66,155.63,3.0183767]
[1762474937145,0.04313662,155.66,155.63,0.0483767]
[1762474937541,3.03313662,155.66,155.63,0.0483767]
[1762474940850,0.04313662,155.66,155.63,3.0183767]
[1762474941455,0.04313662,155.66,155.65,2.97]
[1762474942149,2.99,155.74,155.69,5.7837]
[1762474942344,7.62848333,155.73,155.66,2.97]
[1762474942545,4.63880946,155.72,155.66,2.97]
[1762474942843,5.7829,155.72,155.66,2.97]
[1762474943244,0.04367086,155.71,155.67,0.04674724]
[1762474943750,0.04367086,155.71,155.67,5.83124724]
[1762474944050,3.03367086,155.71,155.67,0.04674724]
[1762474944251,8.774,155.69,155.67,0.04674724]
[1762474944447,2.99,155.68,155.58,2.97]
[1762474945051,5.7852,155.66,155.58,2.97]
[1762474945451,0.04441281,155.64,155.6,0.0486524]
[1762474945748,0.04378276,155.64,155.6,3.0120857]
[1762474945944,3.03378276,155.64,155.6,0.0420857]
[1762474946151,2.99,155.62,155.6,0.0420857]
[1762474946744,8.7766,155.62,155.6,0.0420857]
[1762474946946,0.04378276,155.64,155.47,11.54323732]
[1762474946947,2.99,155.6,155.52,2.97]
[1762474948052,3.03727786,155.58,155.54,0.04650831]
[1762474948250,0.04727786,155.58,155.55,2.97]
[1762474948557,2.99,155.66,155.56,2.97]
[1762474948752,4.64526547,155.65,155.56,2.97]
[1762474949054,2.99,155.66,155.56,2.97]
[1762474949251,2.99,155.71,155.56,2.97]
[1762474949453,7.63657154,155.7,155.56,2.97]
[1762474949648,0.04520722,155.65,155.63,8.7559]
[1762474950255,0.04520722,155.65,155.63,5.7859]
[1762474951453,0.04520722,155.65,155.62,0.04330286]
[1762474952255,0.04520722,155.65,155.62,3.01330286]
[1762474953353,0.04520722,155.65,155.63,5.786]
[1762474953759,0.04520722,155.65,155.64,2.97]
[1762474954156,2.99,155.74,155.66,5.7848]
[1762474954355,7.60360216,155.73,155.66,5.7848]
[1762474954557,4.61360216,155.72,155.66,5.7848]
[1762474954756,4.61340881,155.71,155.64,2.97]
[1762474954956,2.99,155.73,155.64,2.97]
[1762474955150,2.99,155.78,155.71,5.783]
[1762474955461,0.04108718,155.76,155.73,0.04443779]
[1762474955956,0.04108718,155.76,155.73,3.01443779]
[1762474956350,0.04108718,155.76,155.73,0.04443779]
[1762474957962,3.13108718,155.76,155.73,0.04443779]
[1762474958164,3.09,155.74,155.66,3.1]
[1762474958463,3.09,155.71,155.61,3.1]
[1762474958661,3.09,155.69,155.58,3.1]
[1762474958866,4.61259157,155.68,155.59,3.1]
[1762474959057,0.04924469,155.65,155.62,0.04050461]
[1762474960363,0.04924469,155.65,155.62,3.14050461]
[1762474960568,0.04924469,155.65,155.64,3.19]
[1762474960758,2.92,155.75,155.65,3.19]
[1762474961066,4.6111502,155.74,155.65,3.19]
[1762474961363,2.92,155.75,155.68,5.784]
[1762474961562,2.92,155.73,155.65,3.19]
[1762474961760,0.0491409,155.71,155.67,0.04156945]
[1762474961961,2.9691409,155.71,155.67,0.04156945]
[1762474962475,2.92,155.69,155.67,0.04156945]
[1762474962664,7.53312622,155.68,155.6,5.7871]
[1762474962858,4.61312622,155.67,155.6,5.7871]
[1762474963062,2.92,155.68,155.6,5.7871]
[1762474963371,4.61483031,155.67,155.61,5.7866]
[1762474963565,4.61482781,155.66,155.57,3.19]
[1762474963864,0.04556928,155.63,155.6,3.23563649]
[1762474964770,0.04556928,155.63,155.6,0.04563649]
[1762474964771,2.96556928,155.63,155.6,0.04563649]
[1762474965569,0.04556928,155.63,155.6,0.04563649]
[1762474968470,0.04556928,155.63,155.6,3.23563649]
[1762474969379,0.04556928,155.63,155.62,3.19]
[1762474970079,2.96556928,155.63,155.6,0.04563649]
[1762474970275,0.04556928,155.63,155.6,0.04563649]
[1762474970973,0.04556928,155.63,155.6,3.23563649]
[1762474971176,0.04556928,155.63,155.61,8.9767]
[1762474971776,0.04556928,155.63,155.62,3.19]
[1762474972273,2.92,155.71,155.64,5.7856]
[1762474972474,4.61612708,155.7,155.64,5.7856]
[1762474972674,7.53612708,155.69,155.62,8.9763]
[1762474972979,4.61612708,155.68,155.62,3.19]
[1762474973178,2.92,155.66,155.63,0.04289943]
[1762474973369,2.92,155.66,155.63,0.04443109]
[1762474974380,0.04049792,155.67,155.63,0.04443109]
[1762474975273,0.04049792,155.67,155.63,3.23443109]
[1762474975685,2.96049792,155.67,155.63,0.04443109]
[1762474976279,2.92,155.65,155.63,0.04443109]
[1762474976480,7.53707739,155.64,155.63,0.04443109]
[1762474977980,5.7864,155.63,155.57,5.7882]
[1762474978180,5.7864,155.63,155.52,3.19]
[1762474978181,4.61906475,155.62,155.52,3.19]
[1762474978381,2.92,155.67,155.53,3.19]
[1762474978680,2.92,155.63,155.59,5.7875]
[1762474978886,2.92,155.67,155.55,3.19]
[1762474979181,0.0420988,155.63,155.61,8.9768]
[1762474979582,0.0420988,155.63,155.6,0.04855757]
[1762474980484,2.9620988,155.63,155.6,0.04855757]
[1762474980686,0.0420988,155.63,155.6,0.04855757]
[1762474981182,2.9620988,155.63,155.6,0.04855757]
[1762474981686,0.0420988,155.63,155.6,0.04855757]
[1762474982183,0.0420988,155.63,155.6,3.23855757]
[1762474982378,0.0420988,155.63,155.6,0.04855757]
[1762474982783,0.0420988,155.63,155.6,3.23855757]
[1762474983487,7.42378423,155.74,155.62,3.19]
[1762474983488,8.7034,155.71,155.62,3.19]
[1762474983688,4.61512363,155.7,155.62,3.19]
[1762474983984,4.61221174,155.75,155.69,3.19]
[1762474984185,7.52858386,155.74,155.64,3.19]
[1762474984488,0.04738963,155.71,155.67,0.04910924]
[1762474984888,2.96738963,155.71,155.67,0.04910924]
[1762474985287,0.04738963,155.71,155.67,3.23910924]
[1762474985592,0.04738963,155.71,155.69,3.19]
[1762474986284,0.04738963,155.71,155.67,3.23910924]
[1762474986488,0.04738963,155.71,155.67,0.04910924]
[1762474986489,2.96738963,155.71,155.67,0.04910924]
[1762474987089,2.92,155.69,155.67,0.04910924]
[1762474987490,2.96738963,155.71,155.67,0.04910924]
[1762474987686,2.92,155.69,155.67,0.04910924]
[1762474989192,2.96738963,155.71,155.67,0.04910924]
[1762474989388,2.92,155.69,155.59,3.19]
[1762474989688,2.92,155.67,155.59,3.19]
[1762474990191,2.92,155.67,155.6,3.19]
[1762474990488,0.04407746,155.65,155.62,0.04760723]
[1762474990698,0.04407746,155.65,155.62,3.25760723]
[1762474991692,3.14,155.72,155.67,5.7844]
[1762474992288,4.61153681,155.71,155.67,5.7844]
[1762474992494,0.04664958,155.71,155.67,5.83009734]
[1762474992693,0.04664958,155.71,155.69,8.9938]
[1762474992889,4.6103857,155.75,155.7,3.21]
[1762474993085,3.14,155.8,155.7,3.21]
[1762474993391,4.61060121,155.79,155.7,3.21]
[1762474993594,4.61060121,155.78,155.7,3.21]
[1762474993893,3.14,155.8,155.7,3.21]
[1762474994093,0.04322234,155.76,155.73,3.21]
[1762474994690,0.04322234,155.76,155.72,0.04786198]
[1762474994895,0.04322234,155.76,155.73,3.21]
[1762474995885,0.04322234,155.76,155.72,0.04786198]
[1762474996693,3.18322234,155.76,155.72,0.04786198]
[1762474996886,0.04322234,155.76,155.72,0.04786198]
[1762474997092,0.04322234,155.76,155.72,3.25786198]
[1762474997789,0.04322234,155.76,155.75,3.21]
[1762474998399,0.04322234,155.76,155.74,8.9918]
[1762474998596,0.04322234,155.76,155.72,3.25786198]
[1762474999997,0.04322234,155.76,155.73,5.7821]
[1762475000197,0.04322234,155.76,155.73,8.9921]
[1762475001198,0.04322234,155.76,155.74,5.7819]
[1762475002102,0.04322234,155.76,155.72,5.83046198]
[1762475002295,0.04322234,155.76,155.72,9.04046198]
[1762475003202,0.04322234,155.76,155.72,3.25786198]
[1762475003393,3.18322234,155.76,155.72,0.04786198]
[1762475006099,0.04322234,155.76,155.72,3.25786198]
[1762475006300,0.04322234,155.76,155.75,3.21]
[1762475006606,4.59184355,155.82,155.75,3.21]
[1762475006801,3.14,155.83,155.75,3.21]
[1762475007005,3.14,155.81,155.75,3.21]
[1762475007502,0.04675835,155.8,155.76,0.04096356]
[1762475007895,3.18675835,155.8,155.76,0.04096356]
[1762475009399,3.14,155.78,155.76,0.04096356]
[1762475010910,3.14,155.77,155.68,3.21]
[1762475011907,0.04886206,155.74,155.71,0.04494653]
[1762475012109,0.04886206,155.74,155.71,5.82794653]
[1762475012407,0.04886206,155.74,155.71,0.04494653]
[1762475013004,0.04886206,155.74,155.72,5.7827]
[1762475013708,0.04886206,155.74,155.73,3.21]
[1762475015307,0.04886206,155.74,155.72,5.7827]
[1762475015702,0.04886206,155.74,155.73,3.21]
[1762475016403,0.04886206,155.74,155.72,8.9927]
[1762475016608,0.04886206,155.74,155.73,3.21]
[1762475018607,0.04886206,155.74,155.72,5.7827]
[1762475019709,0.04886206,155.74,155.71,0.04494653]
[1762475020803,0.04886206,155.74,155.72,5.7828]
[1762475021011,0.04886206,155.74,155.71,3.20494653]
[1762475021507,0.04886206,155.74,155.71,8.98804653]
[1762475022112,3.12886206,155.74,155.71,5.82804653]
[1762475022405,3.12886206,155.74,155.71,0.04494653]
[1762475022707,3.08,155.72,155.63,14.7318]
[1762475023108,3.08,155.72,155.62,282.61130031]
[1762475023109,3.08,155.72,155.66,5.7849]
[1762475023308,3.08,155.72,155.64,3.16]
[1762475023709,0.04883917,155.7,155.66,3.2078887]
[1762475024713,0.04883917,155.7,155.68,5.7842]
[1762475026013,0.04883917,155.7,155.66,3.2078887]
[1762475026514,0.04883917,155.7,155.68,5.7842]
[1762475027617,0.04883917,155.7,155.66,3.2078887]
[1762475028618,0.04883917,155.7,155.68,5.7842]
[1762475028818,0.04883917,155.7,155.66,3.2078887]
[1762475030013,3.08,155.78,155.69,3.16]
[1762475030212,4.62528051,155.77,155.69,3.16]
[1762475030419,3.08,155.78,155.69,3.16]
[1762475030618,4.62507192,155.77,155.69,3.16]
[1762475030820,4.62507192,155.76,155.69,3.16]
[1762475031014,3.08,155.78,155.69,3.16]
[1762475031222,3.12225677,155.74,155.71,0.0424096]
[1762475031421,3.12091895,155.74,155.71,0.045165]
[1762475031723,0.04091895,155.74,155.71,3.205165]
[1762475031917,3.12091895,155.74,155.71,0.045165]
[1762475032123,3.08,155.72,155.71,0.045165]
[1762475032323,7.70611279,155.72,155.71,0.045165]
[1762475035027,3.08,155.7,155.66,71.5447]
[1762475035220,3.08,155.7,155.66,65.76]
[1762475035426,3.08,155.68,155.62,278.25815224]
[1762475036026,0.04708232,155.67,155.63,0.04611655]
[1762475036728,3.12708232,155.67,155.63,0.04611655]
[1762475038727,3.12708232,155.67,155.63,5.83221655]
[1762475039026,3.12708232,155.67,155.63,3.20611655]
[1762475039425,3.12708232,155.67,155.63,0.04611655]
[1762475040031,0.04708232,155.67,155.64,5.7857]
[1762475040229,0.04708232,155.67,155.63,3.20611655]
[1762475040529,0.04708232,155.67,155.65,5.7853]
[1762475041130,0.04708232,155.67,155.66,3.16]
[1762475041817,3.08,155.74,155.67,3.16]
[1762475042928,0.04441867,155.72,155.69,3.20281925]
[1762475043125,0.04503504,155.72,155.7,3.16]
[1762475043428,3.08,155.81,155.71,7.51314807]
[1762475043625,5.9804823,155.85,155.68,7.51314807]
[1762475043626,3.08,155.79,155.68,7.51314807]
[1762475043824,3.08,155.77,155.68,7.51314807]
[1762475044022,4.62371367,155.76,155.71,3.16]
[1762475044328,0.04579535,155.75,155.72,0.04558097]
[1762475044721,0.04579535,155.75,155.72,3.20558097]
[1762475045325,3.12579535,155.75,155.72,0.04558097]
[1762475045523,3.08,155.73,155.72,0.04558097]
[1762475045723,7.6945825,155.73,155.72,0.04558097]
[1762475046220,7.6945825,155.73,155.65,3.16]
[1762475046433,4.6145825,155.72,155.65,3.16]
[1762475046734,3.08,155.73,155.63,65.76]
[1762475046920,3.08,155.71,155.63,65.76]
[1762475047122,7.69666037,155.7,155.63,65.76]
[1762475047331,3.12626051,155.68,155.65,0.04321476]
[1762475047529,3.08,155.66,155.61,3.16]
[1762475048040,3.08,155.64,155.6,5.7871]
[1762475048227,3.08,155.64,155.58,65.76]
[1762475048530,0.04154204,155.63,155.59,0.04521253]
[1762475048730,0.04694405,155.63,155.6,3.16]
[1762475049332,0.04694405,155.63,155.61,8.9467]
[1762475049527,0.04694405,155.63,155.62,3.16]
[1762475049929,0.04694405,155.63,155.6,3.16]
[1762475051330,3.01694405,155.63,155.59,0.04273057]
[1762475051529,0.04694405,155.63,155.59,3.18273057]
[1762475051936,0.04694405,155.63,155.62,3.14]
[1762475052129,0.04694405,155.63,155.62,4.42]
[1762475052324,0.04694405,155.63,155.62,3.14]
[1762475052533,0.04694405,155.63,155.62,4.42]
[1762475052734,2.97,155.69,155.63,5.7859]
[1762475053438,2.97,155.69,155.62,3.14]
[1762475053732,0.04573147,155.67,155.64,0.04118244]
[1762475054040,0.04573147,155.67,155.64,3.18118244]
[1762475054339,0.04573147,155.67,155.65,3.14]
[1762475054536,4.61087326,155.73,155.69,5.7838]
[1762475054836,2.97,155.75,155.69,3.14]
[1762475055232,194.30141511,155.83,155.7,3.14]
[1762475055233,2.97,155.79,155.7,3.14]
[1762475055431,4.60853176,155.78,155.7,3.14]
[1762475055639,0.04808763,155.76,155.72,0.04056613]
[1762475055838,0.04808763,155.76,155.72,0.04478994]
[1762475056140,0.04808763,155.76,155.72,3.18478994]
[1762475057041,0.04808763,155.76,155.74,3.14]
[1762475057243,4.60737888,155.8,155.74,3.14]
[1762475057443,4.60737888,155.79,155.77,3.14]
[1762475057635,4.60753569,155.78,155.75,3.14]
[1762475057942,2.97,155.82,155.75,3.14]
[1762475058138,10.38576791,155.81,155.75,3.14]
[1762475058343,2.97,155.79,155.77,0.0426321]
[1762475058545,2.97,155.79,155.71,3.14]
[1762475058546,7.57625046,155.78,155.76,0.04621574]
[1762475058743,2.97,155.78,155.76,0.04621574]
[1762475058943,8.7507,155.78,155.76,0.04621574]
[1762475059241,4.60714885,155.77,155.76,0.04621574]
[1762475059439,7.57714885,155.77,155.76,0.04621574]
[1762475059840,0.04785173,155.79,155.76,0.04621574]